[Event "V. Korchnoi Memorial 2019"]
[Site "St. Petersburg"]
[Date "2019.08.16"]
[Round "3.8"]
[White "Mnatsakanian, Arsen"]
[Black "Iljiushenok, Ilia"]
[Result "0-1"]
[ECO "C41"]
[WhiteElo "2310"]
[BlackElo "2533"]
[Annotator "ChessBase"]
[PlyCount "73"]
[EventDate "2019.08.13"]
[EventType "swiss"]
[EventCountry "RUS"]
[SourceTitle "playchess.com"]
[Source "ChessBase"]
[SourceQuality "1"]
[TimeControl "5400+30"]

1. e4 {[%emt 0:00:00]} d6 {[%emt 0:00:00]} 2. d4 {[%emt 0:01:02]} Nf6 {[%emt 0:00:00]} 3. Nc3 {[%emt 0:00:10]} e5 {[%emt 0:00:00]} 4. Nf3 {[%emt 0:05:35]} Nbd7 {[%emt 0:00:00]} 5. Bc4 {[%emt 0:00:17]} Be7 {[%emt 0:00:05]} 6. O-O {[%emt 0:00:37]} O-O {[%emt 0:00:06]} 7. Re1 {[%emt 0:00:59]} c6 {[%emt 0:00:04]} 8. h3 {[%emt 0:01:31]} b5 {[%emt 0:02:54]} 9. Bf1 {[%emt 0:00:34]} Bb7 {[%emt 0:01:54]} 10. a3 {[%emt 0:01:01]} Re8 {[%emt 0:04:12]} 11. Bg5 {[%emt 0:04:29]} a6 {[%emt 0:06:47]} 12. Qd2 {[%emt 0:08:39]} Qc7 {[%emt 0:05:51]} 13. Bh4 {[%emt 0:04:41]} Rad8 {[%emt 0:06:25]} 14. Bg3 {[%emt 0:01:43]} Bf8 {[%emt 0:00:52]} 15. Rad1 {[%emt 0:01:57]} h6 {[%emt 0:03:05]} 16. dxe5 {[%emt 0:01:08]} dxe5 {[%emt 0:00:41]} 17. Qe3 {[%emt 0:01:43]} Nh5 {[%emt 0:10:28]} 18. Bh2 {[%emt 0:00:25]} f6 {[%emt 0:14:31]} 19. Ne2 {[%emt 0:08:17]} g5 {[%emt 0:02:29]} 20. Qb3+ {[%emt 0:04:53]} Kh7 {[%emt 0:02:17]} 21. Nfd4 {[%emt 0:02:51]} Nc5 {[%emt 0:06:01]} 22. Qf3 {[%emt 0:00:11]} Qf7 {[%emt 0:01:40]} 23. Nf5 {[%emt 0:02:05]} Ne6 {[%emt 0:00:53]} 24. a4 {[%emt 0:04:07]} Nc5 {[%emt 0:10:14]} 25. axb5 {[%emt 0:06:37]} cxb5 {[%emt 0:00:04]} 26. Nc3 {[%emt 0:00:04]} Ng7 {[%emt 0:05:16]} 27. Rxd8 {[%emt 0:02:29]} Rxd8 {[%emt 0:01:37]} 28. Ne3 {[%emt 0:00:05]} b4 {[%emt 0:07:25]} 29. Ncd5 {[%emt 0:00:33]} f5 {[%emt 0:00:04]} 30. Bxe5 {[%emt 0:11:51]} Nxe4 {[%emt 0:00:09]} 31. Bc4 {[%emt 0:05:24]} Rxd5 {[%emt 0:02:54]} 32. Ng4 {[%emt 0:03:17]} Nd2 {[%emt 0:02:41]} 33. Qxd5 {[%emt 0:00:19]} Bxd5 {[%emt 0:00:02]} 34. Bxd5 {[%emt 0:00:09]} Qa7 {[%emt 0:00:55]} 35. Nf6+ {[%emt 0:00:05]} Kg6 {[%emt 0:00:04]} 36. Bg8 {[%emt 0:00:24]} h5 {[%emt 0:00:56]} 37. g4 {[%emt 0:01:40]} 0-1

[Event "V. Korchnoi Memorial 2019"]
[Site "St. Petersburg"]
[Date "2019.08.16"]
[Round "3.9"]
[White "Vokhidov, Shamsiddin"]
[Black "Maltsevskaya, Aleksandra"]
[Result "1-0"]
[ECO "B40"]
[WhiteElo "2512"]
[BlackElo "2291"]
[Annotator "ChessBase"]
[PlyCount "93"]
[EventDate "2019.08.13"]
[EventType "swiss"]
[EventCountry "RUS"]
[SourceTitle "playchess.com"]
[Source "ChessBase"]
[SourceQuality "1"]
[TimeControl "5400+30"]

1. e4 {[%emt 0:00:00]} c5 {[%emt 0:00:00]} 2. Nf3 {[%emt 0:00:21]} e6 {[%emt 0:00:00]} 3. g3 {[%emt 0:00:53]} Nc6 {[%emt 0:00:15]} 4. Bg2 {[%emt 0:00:07]} d5 {[%emt 0:00:05]} 5. exd5 {[%emt 0:00:05]} exd5 {[%emt 0:00:04]} 6. d4 {[%emt 0:00:07]} Bg4 {[%emt 0:00:46]} 7. O-O {[%emt 0:00:17]} Nf6 {[%emt 0:04:53]} 8. Re1+ {[%emt 0:06:27]} Be7 {[%emt 0:00:12]} 9. dxc5 {[%emt 0:00:28]} O-O {[%emt 0:00:09]} 10. h3 {[%emt 0:00:35]} Bxf3 11. Qxf3 {[%emt 0:00:26]} Bxc5 {[%emt 0:07:26]} 12. Nc3 {[%emt 0:05:22]} Nb4 {[%emt 0:09:19]} 13. Qd1 {[%emt 0:00:41]} d4 {[%emt 0:08:56]} 14. Ne4 {[%emt 0:01:44]} Nxe4 {[%emt 0:02:18]} 15. Rxe4 {[%emt 0:09:06]} d3 {[%emt 0:05:46]} 16. cxd3 {[%emt 0:02:10]} Qxd3 {[%emt 0:06:46]} 17. Be3 {[%emt 0:02:52]} Bxe3 {[%emt 0:10:27]} 18. Rxe3 {[%emt 0:00:18]} Qxd1+ {[%emt 0:00:09]} 19. Rxd1 {[%emt 0:00:02]} Rfd8 {[%emt 0:01:09]} 20. Rxd8+ {[%emt 0:03:02]} Rxd8 {[%emt 0:00:06]} 21. Bxb7 {[%emt 0:01:58]} Nxa2 {[%emt 0:00:09]} 22. Ra3 {[%emt 0:00:20]} Nb4 {[%emt 0:00:09]} 23. Rxa7 {[%emt 0:00:22]} Kf8 {[%emt 0:00:07]} 24. Ra8 {[%emt 0:02:58]} Rxa8 {[%emt 0:00:07]} 25. Bxa8 {[%emt 0:00:02]} Ke7 {[%emt 0:00:10]} 26. Be4 {[%emt 0:00:35]} g6 {[%emt 0:00:22]} 27. f4 {[%emt 0:03:59]} f5 {[%emt 0:06:28]} 28. Bb1 {[%emt 0:00:47]} Kd6 {[%emt 0:00:06]} 29. Kf2 {[%emt 0:00:06]} Kc5 {[%emt 0:00:09]} 30. g4 {[%emt 0:02:18]} fxg4 {[%emt 0:11:22]} 31. hxg4 {[%emt 0:00:10]} Kc4 {[%emt 0:00:14]} 32. Be4 {[%emt 0:00:25]} Kd4 {[%emt 0:05:21]} 33. Kf3 {[%emt 0:00:47]} Na6 {[%emt 0:00:06]} 34. Bc2 {[%emt 0:00:38]} Nb4 {[%emt 0:01:46]} 35. Be4 {[%emt 0:03:48]} Na6 {[%emt 0:00:08]} 36. g5 {[%emt 0:00:58]} Nb8 {[%emt 0:06:18]} 37. Bb1 {[%emt 0:01:22]} Nc6 {[%emt 0:00:52]} 38. Ba2 {[%emt 0:00:07]} Ne7 {[%emt 0:00:06]} 39. Be6 {[%emt 0:02:39]} Kd3 {[%emt 0:00:48]} 40. b3 {[%emt 0:00:48]} Kc3 {[%emt 0:06:32]} 41. Ke4 {[%emt 0:00:16]} Kb4 {[%emt 0:00:06]} 42. Ke5 {[%emt 0:00:12]} Nc6+ {[%emt 0:00:07]} 43. Kd5 {[%emt 0:00:23]} Na7 {[%emt 0:03:25]} 44. Bg8 {[%emt 0:00:26]} Nc8 {[%emt 0:00:58]} 45. Bxh7 {[%emt 0:00:14]} Kxb3 {[%emt 0:00:05]} 46. Ke6 {[%emt 0:00:17]} Kc4 {[%emt 0:00:06]} 47. Bxg6 {[%emt 0:51:32] Kd5+} 1-0

[Event "V. Korchnoi Memorial 2019"]
[Site "St. Petersburg"]
[Date "2019.08.16"]
[Round "3.10"]
[White "Lobanov, Sergei"]
[Black "Postnikov, Artem"]
[Result "1/2-1/2"]
[ECO "B15"]
[WhiteElo "2495"]
[BlackElo "2278"]
[Annotator "ChessBase"]
[PlyCount "88"]
[EventDate "2019.08.13"]
[EventType "swiss"]
[EventCountry "RUS"]
[SourceTitle "playchess.com"]
[Source "ChessBase"]
[SourceQuality "1"]
[TimeControl "5400+30"]

1. e4 {[%emt 0:08:40]} c6 {[%emt 0:00:00]} 2. d4 {[%emt 0:00:04]} d5 {[%emt 0:00:00]} 3. Nc3 {[%emt 0:00:04]} dxe4 {[%emt 0:00:24]} 4. Nxe4 {[%emt 0:00:05]} Nf6 {[%emt 0:04:50]} 5. Nxf6+ {[%emt 0:00:07]} exf6 {[%emt 0:00:09]} 6. c3 {[%emt 0:00:06]} Bd6 {[%emt 0:00:16]} 7. Bd3 {[%emt 0:00:05]} O-O {[%emt 0:00:24]} 8. Qc2 {[%emt 0:00:04]} h5 {[%emt 0:00:37]} 9. Ne2 {[%emt 0:00:05]} Qc7 {[%emt 0:01:26]} 10. h3 {[%emt 0:00:07]} Re8 {[%emt 0:02:05]} 11. O-O {[%emt 0:00:06]} Nd7 {[%emt 0:03:02]} 12. Bd2 {[%emt 0:00:05]} Nf8 {[%emt 0:03:06]} 13. c4 {[%emt 0:00:05]} Ne6 {[%emt 0:06:40]} 14. c5 {[%emt 0:04:11]} Bh2+ {[%emt 0:10:46]} 15. Kh1 {[%emt 0:00:04]} Bf4 {[%emt 0:10:57]} 16. Be3 {[%emt 0:09:30]} h4 {[%emt 0:06:13]} 17. b4 {[%emt 0:04:14]} Bxe3 {[%emt 0:06:12]} 18. fxe3 {[%emt 0:01:03]} Ng5 {[%emt 0:01:06]} 19. e4 {[%emt 0:01:15]} Qe7 {[%emt 0:12:09]} 20. Rf4 {[%emt 0:30:06]} Ne6 {[%emt 0:07:16]} 21. Rxh4 {[%emt 0:15:18]} Nxd4 {[%emt 0:05:43]} 22. Nxd4 {[%emt 0:00:19]} Qe5 {[%emt 0:00:04]} 23. Nb3 {[%emt 0:17:31]} Qg3 {[%emt 0:00:24]} 24. Rg4 {[%emt 0:00:18]} Bxg4 {[%emt 0:00:05]} 25. hxg4 {[%emt 0:00:00]} Qxg4 {[%emt 0:00:44]} 26. Rf1 {[%emt 0:00:25]} Rad8 {[%emt 0:01:34]} 27. Kg1 {[%emt 0:03:53]} Qg3 {[%emt 0:01:18]} 28. Nc1 {[%emt 0:00:37]} Qe3+ {[%emt 0:00:28]} 29. Kh2 {[%emt 0:02:46]} Re5 {[%emt 0:00:33]} 30. g3 {[%emt 0:01:25]} a5 {[%emt 0:02:09]} 31. a3 {[%emt 0:01:04]} axb4 {[%emt 0:00:04]} 32. axb4 {[%emt 0:00:01]} Rxe4 {[%emt 0:01:47]} 33. Bxe4 {[%emt 0:00:12]} Rd2+ {[%emt 0:00:05]} 34. Qxd2 {[%emt 0:00:03]} Qxd2+ {[%emt 0:00:06]} 35. Bg2 {[%emt 0:00:09]} Qxb4 {[%emt 0:01:06]} 36. Nd3 {[%emt 0:00:00]} Qd4 {[%emt 0:00:55]} 37. Rd1 {[%emt 0:01:00]} g6 {[%emt 0:03:01]} 38. Bf1 {[%emt 0:00:05]} Qg4 {[%emt 0:00:32]} 39. Rd2 {[%emt 0:01:19]} Qg5 {[%emt 0:00:52]} 40. Rb2 {[%emt 0:00:22]} Qh5+ {[%emt 0:00:56]} 41. Kg2 {[%emt 0:00:04]} Qd5+ {[%emt 0:00:21]} 42. Kf2 {[%emt 0:00:04]} Qd7 {[%emt 0:00:56]} 43. Rb4 {[%emt 0:00:04]} Kg7 {[%emt 0:01:10]} 44. Be2 {[%emt 0:00:02]} Qf5+ {[%emt 0:01:11]} 1/2-1/2

[Event "V. Korchnoi Memorial 2019"]
[Site "St. Petersburg"]
[Date "2019.08.17"]
[Round "4.2"]
[White "Chigaev, Maksim"]
[Black "Hamitevici, Vladimir"]
[Result "1-0"]
[ECO "B07"]
[WhiteElo "2643"]
[BlackElo "2480"]
[Annotator "RC"]
[PlyCount "97"]
[EventDate "2019.08.13"]
[EventType "swiss"]
[EventCountry "RUS"]
[SourceTitle "playchess.com"]
[Source "ChessBase"]
[SourceQuality "1"]
[TimeControl "5400+30"]

1. e4 {[%emt 0:00:00]} d6 {[%emt 0:03:56]} 2. d4 {[%emt 0:00:00]} Nf6 {[%emt 0:00:03]} 3. f3 {[%emt 0:00:27]} e5 {[%emt 0:06:47]} 4. dxe5 {[%emt 0:00:06]} dxe5 {[%emt 0:00:04]} 5. Qxd8+ {[%emt 0:00:06]} Kxd8 {[%emt 0:00:04]} 6. Bc4 {[%emt 0:00:09]} Ke8 {[%emt 0:01:06]} 7. Ne2 {[%emt 0:07:23]} Nc6 {[%emt 0:03:54]} 8. Be3 {[%emt 0:03:00]} a6 {[%emt 0:03:07]} 9. a3 {[%emt 0:01:51]} Nd7 {[%emt 0:10:50]} 10. Nbc3 {[%emt 0:01:11]} Bc5 {[%emt 0:01:06]} 11. Bd2 {[%emt 0:04:34]} Nb6 {[%emt 0:01:43]} 12. Ba2 {[%emt 0:00:18]} Nd4 {[%emt 0:01:25]} 13. Nxd4 {[%emt 0:00:40]} Bxd4 {[%emt 0:00:37]} 14. O-O-O {[%emt 0:00:15]} Be6 {[%emt 0:02:06]} 15. Nd5 {[%emt 0:17:12]} Rc8 {[%emt 0:26:20]} 16. c3 {[%emt 0:00:50]} c6 {[%emt 0:00:09]} 17. Nc7+ {[%emt 0:01:54]} Rxc7 {[%emt 0:00:05]} 18. Bxe6 {[%emt 0:00:05]} Bc5 {[%emt 0:03:21]} 19. Ba2 {[%emt 0:00:09]} Nc8 {[%emt 0:07:09]} 20. Kc2 {[%emt 0:00:28]} Rd7 {[%emt 0:04:56]} 21. Rhf1 {[%emt 0:11:00]} Bd6 {[%emt 0:05:45]} 22. Rde1 {[%emt 0:00:22]} Re7 {[%emt 0:06:16]} 23. g3 {[%emt 0:00:28]} Bc7 {[%emt 0:02:47]} 24. Bg5 {[%emt 0:03:26]} f6 {[%emt 0:00:16]} 25. Bc1 {[%emt 0:00:16]} Nd6 {[%emt 0:00:37]} 26. Rd1 {[%emt 0:03:09]} Rd7 {[%emt 0:01:34]} 27. Rde1 {[%emt 0:06:15]} Re7 {[%emt 0:00:29]} 28. Be3 {[%emt 0:00:17]} Kd7 {[%emt 0:00:18]} 29. Rd1 {[%emt 0:00:14]} Rd8 {[%emt 0:02:30]} 30. Rd3 {[%emt 0:00:13]} Ke8 {[%emt 0:00:18]} 31. Rfd1 {[%emt 0:00:21]} b6 {[%emt 0:02:25]} 32. Bxb6 {[%emt 0:01:15]} Bxb6 {[%emt 0:00:05]} 33. Rxd6 {[%emt 0:00:10]} Rxd6 {[%emt 0:00:02]} 34. Rxd6 {[%emt 0:00:07]} Rc7 {[%emt 0:00:08]} 35. Bd5 {[%emt 0:00:12]} Bg1 {[%emt 0:02:30]} 36. Rxc6 {[%emt 0:00:07]} Rxc6 {[%emt 0:00:04]} 37. Bxc6+ {[%emt 0:00:07]} Kf7 {[%emt 0:00:05]} 38. h3 {[%emt 0:00:09]} Bf2 {[%emt 0:00:05]} 39. g4 {[%emt 0:01:09]} Kg6 {[%emt 0:00:06]} 40. b4 {[%emt 0:00:49]} Kg5 {[%emt 0:00:12]} 41. Bb7 {[%emt 0:00:12]} a5 {[%emt 0:00:49]} 42. c4 {[%emt 0:00:05]} axb4 {[%emt 0:00:51]} 43. axb4 {[%emt 0:00:05]} Bb6 {[%emt 0:01:49]} 44. c5 {[%emt 0:00:13]} Bd8 {[%emt 0:00:05]} 45. Kd3 {[%emt 0:00:07]} Kf4 {[%emt 0:00:25]} 46. b5 {[%emt 0:00:15]} h5 {[%emt 0:01:12]} 47. gxh5 {[%emt 0:00:21]} Kxf3 {[%emt 0:00:07]} 48. b6 {[%emt 0:00:45]} Kf4 {[%emt 0:00:05]} 49. Bc8 {[%emt 0:00:09]} 1-0

[Event "V. Korchnoi Memorial 2019"]
[Site "St. Petersburg"]
[Date "2019.08.17"]
[Round "4.5"]
[White "Stupak, Kirill"]
[Black "Makhmutov, Rail"]
[Result "1-0"]
[ECO "D85"]
[WhiteElo "2561"]
[BlackElo "2408"]
[Annotator "ChessBase"]
[PlyCount "41"]
[EventDate "2019.08.13"]
[EventType "swiss"]
[EventCountry "RUS"]
[SourceTitle "playchess.com"]
[Source "ChessBase"]
[SourceQuality "1"]
[TimeControl "5400+30"]

1. d4 {[%emt 0:01:38]} Nf6 {[%emt 0:00:00]} 2. c4 {[%emt 0:00:12]} g6 {[%emt 0:00:17]} 3. Nc3 {[%emt 0:01:11]} d5 {[%emt 0:00:16]} 4. cxd5 {[%emt 0:00:49]} Nxd5 {[%emt 0:00:03]} 5. e4 {[%emt 0:00:28]} Nxc3 {[%emt 0:00:09]} 6. bxc3 {[%emt 0:00:02]} Bg7 {[%emt 0:00:14]} 7. Qa4+ {[%emt 0:00:27]} Nd7 {[%emt 0:00:54]} 8. Nf3 {[%emt 0:00:20]} c5 {[%emt 0:00:51]} 9. Be2 {[%emt 0:00:23]} O-O {[%emt 0:01:21]} 10. O-O {[%emt 0:00:04]} cxd4 {[%emt 0:16:07]} 11. cxd4 {[%emt 0:02:02]} Nc5 {[%emt 0:01:19]} 12. dxc5 {[%emt 0:00:06]} Bxa1 {[%emt 0:06:33]} 13. e5 {[%emt 0:00:01]} Bc3 {[%emt 0:27:06]} 14. Bh6 {[%emt 0:40:04]} Qa5 {[%emt 0:09:46]} 15. Qh4 {[%emt 0:00:35]} Qxc5 {[%emt 0:02:05]} 16. Bxf8 {[%emt 0:05:28]} Kxf8 {[%emt 0:00:11]} 17. Qh6+ {[%emt 0:00:06]} Ke8 {[%emt 0:02:10]} 18. Rd1 {[%emt 0:06:49]} e6 {[%emt 0:10:10]} 19. Qxh7 {[%emt 0:00:32]} Ba5 {[%emt 0:00:46]} 20. Qh8+ {[%emt 0:00:13]} Ke7 {[%emt 0:01:24]} 21. Ng5 {[%emt 0:00:07]} 1-0

[Event "V. Korchnoi Memorial 2019"]
[Site "St. Petersburg"]
[Date "2019.08.17"]
[Round "4.6"]
[White "Iljiushenok, Ilia"]
[Black "Shapiro, Viktor"]
[Result "1-0"]
[ECO "B03"]
[WhiteElo "2533"]
[BlackElo "2249"]
[Annotator "ChessBase"]
[PlyCount "47"]
[EventDate "2019.08.13"]
[EventType "swiss"]
[EventCountry "RUS"]
[SourceTitle "playchess.com"]
[Source "ChessBase"]
[SourceQuality "1"]
[TimeControl "5400+30"]

1. e4 {[%emt 1:30:30]} Nf6 {[%emt 1:30:30]} 2. e5 {[%emt 0:00:30]} Nd5 {[%emt 0:00:30]} 3. c4 {[%emt 0:00:30]} Nb6 {[%emt 0:00:30]} 4. d4 {[%emt 0:00:30]} d6 {[%emt 0:00:30]} 5. f4 {[%emt 0:00:30]} dxe5 {[%emt 0:00:30]} 6. fxe5 {[%emt 0:00:30]} c5 {[%emt 0:00:30]} 7. d5 {[%emt 0:00:30]} g6 {[%emt 0:00:30]} 8. Nc3 {[%emt 0:00:30]} Bg7 {[%emt 0:00:30]} 9. Bf4 {[%emt 0:00:30]} O-O {[%emt 0:00:30]} 10. Qd2 {[%emt 0:00:30]} Bf5 {[%emt 0:00:30]} 11. h3 {[%emt 0:00:30]} g5 {[%emt 0:00:30]} 12. Bxg5 {[%emt 0:00:30]} Bxe5 {[%emt 0:00:30]} 13. O-O-O {[%emt 0:00:30]} N8d7 {[%emt 0:00:30]} 14. Nf3 {[%emt 0:00:30]} Bf6 {[%emt 0:00:30]} 15. g4 {[%emt 0:00:30]} Bg6 {[%emt 0:00:30]} 16. h4 {[%emt 0:00:30]} e5 {[%emt 0:00:30]} 17. h5 {[%emt 0:00:30]} e4 {[%emt 0:00:30]} 18. Bxf6 {[%emt 0:00:30]} Qxf6 {[%emt 0:00:30]} 19. Ne1 {[%emt 0:00:30]} e3 {[%emt 0:00:30]} 20. Qh2 {[%emt 0:00:30]} e2 {[%emt 0:00:30]} 21. Bxe2 {[%emt 0:00:30]} Qg5+ {[%emt 0:00:30]} 22. Rd2 {[%emt 0:00:30]} Bb1 {[%emt 0:00:30]} 23. Nf3 {[%emt 0:00:30]} Qe3 {[%emt 0:00:30]} 24. Kxb1 {[%emt 0:00:30]} 1-0

[Event "V. Korchnoi Memorial 2019"]
[Site "St. Petersburg"]
[Date "2019.08.17"]
[Round "4.7"]
[White "Vlasenko, Miroslav"]
[Black "Vokhidov, Shamsiddin"]
[Result "0-1"]
[ECO "E32"]
[WhiteElo "2419"]
[BlackElo "2512"]
[Annotator "ChessBase"]
[PlyCount "98"]
[EventDate "2019.08.13"]
[EventType "swiss"]
[EventCountry "RUS"]
[SourceTitle "playchess.com"]
[Source "ChessBase"]
[SourceQuality "1"]
[TimeControl "5400+30"]

1. d4 {[%emt 0:09:18]} Nf6 {[%emt 0:00:22]} 2. c4 {[%emt 0:00:15]} e6 {[%emt 0:00:07]} 3. Nc3 {[%emt 0:00:06]} Bb4 {[%emt 0:00:04]} 4. Qc2 {[%emt 0:00:04]} O-O {[%emt 0:06:58]} 5. a3 {[%emt 0:00:07]} Bxc3+ {[%emt 0:00:05]} 6. Qxc3 {[%emt 0:00:05]} b6 {[%emt 0:00:21]} 7. Bg5 {[%emt 0:00:13]} c5 {[%emt 0:00:02]} 8. dxc5 {[%emt 0:00:55]} bxc5 {[%emt 0:00:03]} 9. e3 {[%emt 0:03:19]} d6 {[%emt 0:00:27]} 10. Bd3 {[%emt 0:05:50]} Nbd7 {[%emt 0:09:53]} 11. Ne2 {[%emt 0:07:05]} Rb8 {[%emt 0:00:12]} 12. Rd1 {[%emt 0:14:28]} h6 {[%emt 0:23:38]} 13. Bf4 {[%emt 0:05:37]} e5 {[%emt 0:00:16]} 14. Bg3 {[%emt 0:00:07]} Qb6 {[%emt 0:00:03]} 15. Rd2 {[%emt 0:03:05]} Bb7 {[%emt 0:00:34]} 16. O-O {[%emt 0:02:16]} Qc6 {[%emt 0:01:07]} 17. f3 {[%emt 0:01:24]} e4 {[%emt 0:01:59]} 18. Bb1 {[%emt 0:03:30]} exf3 {[%emt 0:00:23]} 19. gxf3 {[%emt 0:00:29]} Ne5 {[%emt 0:01:19]} 20. Bxe5 {[%emt 0:04:34]} dxe5 {[%emt 0:00:15]} 21. Ng3 {[%emt 0:01:18]} Rbd8 {[%emt 0:07:00]} 22. Rg2 {[%emt 0:08:21]} Bc8 {[%emt 0:00:25]} 23. Bf5 {[%emt 0:06:21]} Rfe8 {[%emt 0:00:47]} 24. Bxc8 {[%emt 0:04:01]} Qxc8 {[%emt 0:00:18]} 25. e4 {[%emt 0:01:04]} Kh7 {[%emt 0:07:03]} 26. Qe3 {[%emt 0:04:05]} g6 {[%emt 0:03:08]} 27. Kh1 {[%emt 0:00:56]} Rd4 {[%emt 0:01:49]} 28. Rfg1 {[%emt 0:01:59]} Qh3 {[%emt 0:00:39]} 29. b4 {[%emt 0:05:35]} Rc8 {[%emt 0:07:20]} 30. bxc5 {[%emt 0:01:08]} Rxc5 {[%emt 0:00:45]} 31. Rc2 {[%emt 0:04:25]} a6 {[%emt 0:05:38]} 32. Qb3 {[%emt 0:01:05]} Qe6 {[%emt 0:00:49]} 33. Rgc1 {[%emt 0:00:35]} Nd7 {[%emt 0:03:41]} 34. Nf1 {[%emt 0:00:32]} Qf6 {[%emt 0:00:47]} 35. Rd2 {[%emt 0:01:26]} Nf8 {[%emt 0:01:52]} 36. Rxd4 {[%emt 0:00:57]} exd4 {[%emt 0:00:09]} 37. Nd2 {[%emt 0:00:16]} Qf4 {[%emt 0:01:01]} 38. Qd3 {[%emt 0:00:28]} Ne6 {[%emt 0:00:28]} 39. Rg1 {[%emt 0:00:50]} Qe3 {[%emt 0:01:09]} 40. Qxe3 {[%emt 0:00:15]} dxe3 {[%emt 0:00:02]} 41. Nf1 {[%emt 0:00:11]} e2 {[%emt 0:00:12]} 42. Ne3 {[%emt 0:01:03]} Nd4 {[%emt 0:01:38]} 43. Re1 {[%emt 0:00:41]} Ra5 {[%emt 0:00:04]} 44. Kg2 {[%emt 0:00:10]} Rxa3 {[%emt 0:00:07]} 45. Kf2 {[%emt 0:00:04]} Rc3 {[%emt 0:02:17]} 46. h4 {[%emt 0:00:36]} a5 {[%emt 0:00:15]} 47. Rxe2 {[%emt 0:01:04]} Nxe2 {[%emt 0:00:05]} 48. Kxe2 {[%emt 0:00:03]} a4 {[%emt 0:00:15]} 49. Kd2 {[%emt 0:00:08]} Rxe3 {[%emt 0:00:32]} 0-1

[Event "V. Korchnoi Memorial 2019"]
[Site "St. Petersburg"]
[Date "2019.08.17"]
[Round "4.8"]
[White "Bukal, Vladimir Jr."]
[Black "Goganov, Aleksey"]
[Result "0-1"]
[ECO "D02"]
[WhiteElo "2405"]
[BlackElo "2564"]
[Annotator "ChessBase"]
[PlyCount "88"]
[EventDate "2019.08.13"]
[EventType "swiss"]
[EventCountry "RUS"]
[SourceTitle "playchess.com"]
[Source "ChessBase"]
[SourceQuality "1"]
[TimeControl "5400+30"]

1. d4 {[%emt 0:00:00]} d5 {[%emt 0:07:05]} 2. Bf4 {[%emt 0:00:00]} Nf6 {[%emt 0:00:06]} 3. e3 {[%emt 0:00:24]} e6 {[%emt 0:00:08]} 4. Nf3 {[%emt 0:00:15]} c5 {[%emt 0:00:07]} 5. Be2 {[%emt 0:00:13]} Nc6 {[%emt 0:00:13]} 6. O-O {[%emt 0:00:10]} Bd6 {[%emt 0:01:34]} 7. dxc5 {[%emt 0:00:09]} Bxf4 {[%emt 0:04:41]} 8. exf4 {[%emt 0:00:15]} Qa5 {[%emt 0:00:21]} 9. c3 {[%emt 0:27:21]} Qxc5 {[%emt 0:00:06]} 10. b4 {[%emt 0:01:37]} Qd6 {[%emt 0:00:36]} 11. b5 {[%emt 0:00:36]} Ne7 {[%emt 0:02:02]} 12. Ne5 {[%emt 0:01:15]} Nd7 {[%emt 0:01:34]} 13. Nd3 {[%emt 0:06:03]} O-O {[%emt 0:03:10]} 14. Nd2 {[%emt 0:00:14]} b6 {[%emt 0:02:45]} 15. Bf3 {[%emt 0:13:49]} Bb7 {[%emt 0:00:07]} 16. Re1 {[%emt 0:01:23]} Rac8 {[%emt 0:00:15]} 17. Rc1 {[%emt 0:06:25]} Rfd8 {[%emt 0:07:08]} 18. g3 {[%emt 0:03:52]} Nc5 {[%emt 0:00:21]} 19. Nxc5 {[%emt 0:02:35]} Rxc5 {[%emt 0:00:14]} 20. Qa4 {[%emt 0:01:12]} Qc7 {[%emt 0:01:29]} 21. Qb4 {[%emt 0:07:13]} Nf5 {[%emt 0:01:32]} 22. Bg4 {[%emt 0:09:16]} Nd6 {[%emt 0:00:36]} 23. Be2 {[%emt 0:00:27]} d4 {[%emt 0:07:50]} 24. Nb3 {[%emt 0:06:12]} Rxc3 {[%emt 0:00:33]} 25. Rcd1 {[%emt 0:00:07]} Bd5 {[%emt 0:10:27]} 26. Nxd4 {[%emt 0:01:38]} Rc8 {[%emt 0:03:16]} 27. f5 {[%emt 0:01:29]} exf5 {[%emt 0:07:48]} 28. Nc6 {[%emt 0:00:35]} Rc5 {[%emt 0:01:52]} 29. Rxd5 {[%emt 0:04:04]} Rxd5 {[%emt 0:00:19]} 30. Bc4 {[%emt 0:01:01]} Rc5 {[%emt 0:00:55]} 31. Re7 {[%emt 0:01:11]} Rxc6 {[%emt 0:08:42]} 32. Rxc7 {[%emt 0:00:34]} R6xc7 {[%emt 0:00:05]} 33. Bd5 {[%emt 0:00:49]} Rd8 {[%emt 0:03:39]} 34. Bc6 {[%emt 0:00:51]} Ne4 {[%emt 0:00:37]} 35. Kg2 {[%emt 0:00:51]} g6 {[%emt 0:00:21]} 36. h4 {[%emt 0:00:10]} h5 {[%emt 0:00:12]} 37. a4 {[%emt 0:00:22]} Nc5 {[%emt 0:01:21]} 38. a5 {[%emt 0:00:33]} Ne6 {[%emt 0:00:42]} 39. Qe1 {[%emt 0:01:22]} bxa5 {[%emt 0:01:32]} 40. Qxa5 {[%emt 0:00:25]} f4 {[%emt 0:03:13]} 41. Qe1 {[%emt 0:01:36]} fxg3 {[%emt 0:02:02]} 42. fxg3 {[%emt 0:00:02]} a6 {[%emt 0:00:11]} 43. Qe5 {[%emt 0:01:34]} axb5 {[%emt 0:00:10]} 44. Bxb5 {[%emt 0:00:22]} Rc5 {[%emt 0:02:12]} 0-1